fUSD/lending_fUSD_20240107
["ID","MTS","AMOUNT","RATE_DAILY","PERIOD"]
[310643287,1704614273456,175.9,0.00022,2]
[310643288,1704614299445,2466.42310275,0.00022305,2]
[310643289,1704614304647,450.9,0.00022161,2]
[310643290,1704614308160,446.57150611,0.00020466,2]
[310643291,1704614310394,3179.405971,0.00022075,2]
[310643292,1704614311047,26097.43,0.0002216,2]
[310643293,1704614313958,207.0,0.0002212,2]
[310643294,1704614325463,150.0,0.00022192,2]
[310643295,1704614327963,328.876052,0.00020466,2]
[310643296,1704614333367,155.24199715,0.00022,2]
[310643297,1704614336104,153.72270129,0.00022,2]
[310643298,1704614340952,435.768738,0.00022434,2]
[310643299,1704614345457,401.56,0.00020265,2]
[310643300,1704614349362,245.53185295,0.00022,2]
[310643301,1704614351921,509.78,0.0002216,2]
[310643302,1704614353290,250.0,0.0002216,2]
[310643303,1704614356266,452.85669,0.00022415,2]
[310643304,1704614400489,157.08,0.00022381,2]
[310643305,1704614402705,150.0,0.00022415,2]
[310643306,1704614402864,150.0,0.00022415,2]
[310643307,1704614403076,290.05168331,0.00022415,2]
[310643308,1704614405777,177.3,0.0002216,2]
[310643309,1704614406530,271.22,0.0002216,2]
[310643310,1704614409731,174.33,0.00016712,2]
[310643311,1704614422973,2705.0,0.00022183,2]
[310643312,1704614425221,8441.7,0.00022183,2]
[310643313,1704614439810,444.49,0.0002216,2]
[310643314,1704614440422,216.55075586,0.000192,2]
[310643315,1704614462568,2505.29,0.00022199,2]
[310643316,1704614462706,304.34,0.00022199,2]
[310643317,1704614463370,191.7935,0.00022415,2]
[310643318,1704614469770,177.35,0.00017715,2]
[310643319,1704614482481,500.0,0.00022,2]
[310643320,1704614482800,200.0,0.00022124,2]
[310643321,1704614486952,323.95,0.00022124,2]
[310643322,1704614497900,3908.09,0.00022109,2]
[310643323,1704614512621,5175.7863842,0.000192,2]
[310643324,1704614515358,15671.14041114,0.00022109,2]
[310643325,1704614523115,254.91,0.00022275,2]
[310643326,1704614523315,254.91,0.00022336,2]
[310643327,1704614523516,254.91,0.00022397,2]
[310643328,1704614523598,155.21921165,0.00020696,2]
[310643329,1704614523725,254.91,0.00022458,2]
[310643330,1704614526185,214.00173461,0.00022075,2]
[310643331,1704614531144,500.0,0.00021996,2]
[310643332,1704614533357,15721.70337364,0.00022109,2]
[310643333,1704614559632,227.95,0.00021971,10]
[310643334,1704614559765,360.1226351,0.00018396,2]
[310643335,1704614559846,227.95,0.00022509,10]
[310643336,1704614560080,227.95,0.00023047,10]
[310643337,1704614560283,227.95,0.00023586,10]
[310643338,1704614560672,227.95,0.00024124,10]
[310643339,1704614566504,1138.94118419,0.00022269,2]
[310643340,1704614570718,150.0,0.00022,2]
[310643341,1704614574414,3183.40295934,0.00022075,2]
[310643342,1704614575856,283.67135139,0.00022109,2]
[310643343,1704614577778,361.01334736,0.00018396,2]
[310643344,1704614588202,194.44,0.00021959,2]
[310643345,1704614589946,883.3850575,0.00022109,2]
[310643346,1704614594056,272.6105466,0.00022109,2]
[310643347,1704614594265,200.0,0.00021959,2]
[310643348,1704614594292,1595.95677449,0.00017687,2]
[310643349,1704614594417,2195.30268275,0.00022075,2]
[310643350,1704614595839,286.41950903,0.00022109,2]
[310643351,1704614602193,312.84468649,0.00022109,2]
[310643352,1704614602535,1029.18525679,0.00022109,2]
[310643353,1704614602644,401.43951448,0.00021446,2]
[310643354,1704614605956,344.11174205,0.00022109,2]
[310643355,1704614609442,265.92,0.00021959,2]
[310643356,1704614610574,370.16332089,0.00022109,2]
[310643357,1704614611872,360.05807125,0.00018396,2]
[310643358,1704614614195,313.89453722,0.00022109,2]
[310643359,1704614617030,254.85450863,0.00022109,2]
[310643361,1704614619345,854.8821237,0.00022109,2]
[310643362,1704614621595,1037.885133,0.00022405,2]
[310643363,1704614624354,543.16023412,0.00022109,2]
[310643364,1704614626870,1233.76827622,0.00022109,2]
[310643365,1704614627619,2000.0,0.00021958,2]
[310643366,1704614629676,256.17604664,0.00022109,2]
[310643367,1704614630463,155.43468571,0.00020696,2]
[310643368,1704614631811,16497.06435933,0.00022,2]
[310643369,1704614632887,921.42,0.00021958,2]
[310643370,1704614632957,855.92408376,0.00021959,2]
[310643371,1704614633956,3854.71,0.00021958,2]
[310643372,1704614638696,150.97750141,0.00022,2]
[310643373,1704614640365,544.61494884,0.00021959,2]
[310643374,1704614644258,168.1,0.00021958,2]
[310643375,1704614646644,2477.47,0.00021958,2]
[310643376,1704614654657,282.62179713,0.00021959,2]
[310643377,1704614659804,291.53968014,0.00021959,2]
[310643378,1704614660880,1031.40550924,0.00021959,2]
[310643379,1704614667948,151.02040454,0.00022,2]
[310643380,1704614670876,282.36872533,0.00021959,2]
[310643381,1704614674888,1034.52464315,0.00021959,2]
[310643382,1704614676063,176.8846555,0.00021959,2]
[310643383,1704614676475,153.55,0.00021958,2]
[310643384,1704614676672,153.55,0.00022178,2]
[310643385,1704614676909,153.55,0.00022398,2]
[310643386,1704614681338,475.02,0.00021958,2]
[310643387,1704614681815,292.35910523,0.00021959,2]
[310643388,1704614685104,500.0,0.00021942,2]
[310643389,1704614690713,648.33,0.00021963,2]
[310643390,1704614696253,240.24312014,0.00021959,2]
[310643391,1704614702430,200.0,0.00021936,2]
[310643392,1704614703521,198.74725172,0.00021958,2]
[310643393,1704614705105,1989.68,0.00021947,2]
[310643394,1704614712146,350.0,0.00022,2]
[310643395,1704614718864,19219.7088753,0.000219,2]
[310643396,1704614718884,2000.0,0.000219,2]
[310643397,1704614718904,2000.0,0.000219,2]
[310643398,1704614718926,2000.0,0.000219,2]
[310643399,1704614718946,8816.2105247,0.000219,2]
[310643400,1704614725446,11183.7894753,0.00021941,2]
[310643401,1704614725468,5000.0,0.00021941,2]
[310643402,1704614725493,1000.0,0.00021941,2]
[310643403,1704614725514,1000.0,0.00021941,2]
[310643404,1704614725541,1975.0940761,0.00021941,2]
[310643405,1704614725565,3741.1164486,0.00021941,2]
[310643406,1704614749449,500.36,0.00021926,2]
[310643407,1704614750614,150.0,0.00021915,2]
[310643408,1704614777361,250.0,0.00021874,2]
[310643409,1704614795592,514.64,0.0001997,2]
[310643410,1704614795833,514.64,0.00022233,2]
[310643411,1704614827301,200.0,0.000222,8]
[310643412,1704614829412,500.0,0.000223,8]
[310643413,1704614831503,423.89,0.00021891,2]
[310643414,1704614831534,800.0,0.000224,8]
[310643415,1704614833607,1000.0,0.000225,8]
[310643416,1704614835696,1300.0,0.000226,8]
[310643417,1704614836141,174.33,0.00016712,2]
[310643418,1704614837782,200.0,0.000227,8]
[310643419,1704614839916,200.0,0.000228,8]
[310643420,1704614842146,200.0,0.000229,8]
[310643421,1704614842732,4000.49,0.00021918,2]
[310643422,1704614842815,157.49,0.00022102,2]
[310643423,1704614848812,170.53,0.00021883,2]
[310643424,1704614884920,175.9,0.00022,2]
[310643425,1704614895053,2358.94,0.00021883,2]
[310643428,1704614950216,1138.9411842,0.00022508,2]
[310643431,1704614972645,644.4,0.00021896,2]
[310643432,1704614978687,200.0,0.00021893,2]
[310643435,1704614990615,16.6588158,0.00021893,2]
[310643436,1704614990635,2000.0,0.00021893,2]
[310643437,1704614990671,1251.5111842,0.00021893,2]
[310643438,1704615010692,1873.1623672,0.00021897,2]
[310643439,1704615010731,3161.7876328,0.00021897,2]
[310643447,1704615032185,-254.91,0.00022519,2]
[310643448,1704615032195,-128.109,0.00022531,2]
[310643449,1704615032208,-357.25811688,0.00022531,2]
[310643450,1704615032241,-2208.0,0.00022531,2]
[310643461,1704615038062,500.0,0.00021903,2]
[310643462,1704615038076,-262.08818312,0.00022531,2]
[310643463,1704615038086,-156.97311743,0.00022541,2]
[310643464,1704615038095,-500.0,0.00022548,2]
[310643465,1704615038106,-175.9,0.00022548,2]
[310643466,1704615038115,-236.14407944,0.0002258,2]
[310643467,1704615038179,-18.76592056,0.0002258,2]
[310643468,1704615038189,-153.55,0.00022617,2]
[310643469,1704615038198,-156.97311739,0.00022631,2]
[310643470,1704615038207,-254.91,0.00022641,2]
[310643471,1704615038216,-1481.80096205,0.000227,2]
[310643472,1704615038234,-119.04851383,0.000227,2]
[310643473,1704615038244,-254.91,0.00022702,2]
[310643474,1704615038254,-156.97311739,0.00022721,2]
[310643475,1704615038263,-254.91,0.00022764,2]
[310643476,1704615038273,-25148.94681845,0.00022765,2]
[310643477,1704615038282,-298.5341,0.000228,2]
[310643478,1704615038291,-156.97311739,0.0002281,2]
[310643479,1704615038301,-254.91,0.00022825,2]
[310643480,1704615038310,-153.55,0.00022837,2]
[310643481,1704615038319,-166.09,0.0002286,2]
[310643482,1704615038328,-834.0,0.00022879,2]
[310643483,1704615038337,-254.91,0.00022886,2]
[310643484,1704615038346,-19654.0,0.00022889,2]
[310643485,1704615038355,-18362.0144,0.00022896,2]
[310643486,1704615038364,-1928.5257,0.00022897,2]
[310643487,1704615038375,-154.5389156,0.00022899,2]
[310643488,1704615038385,-154.53891556,0.00022899,2]
[310643489,1704615038395,-154.53891556,0.00022899,2]
[310643490,1704615038404,-154.53891556,0.000229,2]
[310643491,1704615038414,-154.53891556,0.000229,2]
[310643492,1704615038423,-154.53891556,0.000229,2]
[310643493,1704615038433,-10507.09,0.000229,2]
[310643494,1704615038442,-25000.0,0.000229,2]
[310643495,1704615038451,-156.97311739,0.000229,2]
[310643496,1704615038461,-1818.55585804,0.000229,2]
[310643497,1704615038471,-154.53891556,0.000229,2]
[310643498,1704615038480,-648.33,0.00022942,2]
[310643499,1704615038489,-292.14370908,0.00022942,3]
[310643500,1704615038498,-254.91,0.00022947,2]
[310643501,1704615038507,-171.77285866,0.00022985,2]
[310643502,1704615038517,-759.25073537,0.00022993,2]
[310643503,1704615038526,-814.47408969,0.00022994,3]
[310643504,1704615038534,-198.60853888,0.00022994,2]
[310643505,1704615038543,-500.0,0.00022994,2]
[310643506,1704615038552,-500.0,0.00022994,2]
[310643507,1704615038561,-500.0,0.00022994,2]
[310643508,1704615038570,-500.0,0.00022994,2]
[310643509,1704615038579,-500.0,0.00022994,2]
[310643510,1704615038589,-500.0,0.00022994,2]
[310643511,1704615038600,-500.0,0.00022994,2]
[310643512,1704615038609,-500.0,0.00022994,2]
[310643513,1704615038618,-500.0,0.00022994,2]
[310643514,1704615038627,-500.0,0.00022994,2]
[310643515,1704615038637,-500.0,0.00022994,2]
[310643516,1704615038647,-250.5,0.00022994,2]
[310643517,1704615038656,-473.05,0.00022994,2]
[310643518,1704615038666,-500.0,0.00022994,2]
[310643519,1704615038675,-500.0,0.00022994,2]
[310643520,1704615038685,-380.95,0.00022994,2]
[310643521,1704615038694,-500.0,0.00022994,2]
[310643522,1704615038705,-500.0,0.00022994,2]
[310643523,1704615038716,-500.0,0.00022994,2]
[310643524,1704615038728,-1208.15,0.00022994,2]
[310643525,1704615038738,-1208.15,0.00022994,2]
[310643526,1704615038751,-500.0,0.00022994,2]
[310643527,1704615038762,-1208.15,0.00022994,2]
[310643528,1704615038773,-500.0,0.00022994,2]
[310643529,1704615038784,-500.0,0.00022994,2]
[310643530,1704615038795,-1662.83,0.00022994,2]
[310643531,1704615038805,-1662.83,0.00022994,2]
[310643532,1704615038816,-1662.83,0.00022994,2]
[310643533,1704615038827,-582.43,0.00022994,2]
[310643534,1704615038837,-582.43,0.00022994,2]
[310643535,1704615038847,-582.43,0.00022994,2]
[310643536,1704615038857,-1457.31023914,0.00022994,2]
[310643537,1704615038868,-232.05444041,0.00022994,2]
[310643538,1704615038878,-500.0,0.00022994,2]
[310643539,1704615038888,-500.0,0.00022994,2]
[310643540,1704615038897,-500.0,0.00022994,2]
[310643541,1704615038906,-392.2,0.00022994,2]
[310643542,1704615038916,-526.99805498,0.00022995,3]
[310643543,1704615038926,-171.46989568,0.00022995,2]
[310643544,1704615038936,-5320.42535227,0.00022995,2]
[310643545,1704615038946,-526.10797536,0.00022995,2]
[310643546,1704615038956,-1364.29,0.00022995,2]
[310643547,1704615038966,-476528.16806986,0.00022995,2]
[310643548,1704615038986,-546.17176038,0.00022995,2]
[310643549,1704615039000,-1285.22235789,0.00022995,2]
[310643550,1704615039016,-951.26132272,0.00022995,2]
[310643551,1704615039031,-1030.21621389,0.00022995,2]
[310643552,1704615039050,-14565.49728054,0.00022995,2]
[310643553,1704615039063,-1167.65117385,0.00022995,2]
[310643556,1704615040607,-500.0,0.00022995,2]
[310643557,1704615040710,-531.06,0.00022995,2]
[310643558,1704615041357,-90502.64784799,0.00022995,2]
[310643559,1704615041370,-17229.27584744,0.00022995,2]
[310643560,1704615041379,-461.7358465,0.00022996,3]
[310643561,1704615041388,-500.0,0.00022996,2]
[310643562,1704615041398,-492.95139193,0.00022996,2]
[310643563,1704615041409,-574.89,0.00022996,2]
[310643564,1704615041418,-574.89,0.00022996,2]
[310643565,1704615041430,-633.60470871,0.00022996,2]
[310643566,1704615041439,-500.0,0.00022996,2]
[310643567,1704615041449,-621.18,0.00022996,2]
[310643568,1704615041459,-621.18,0.00022996,2]
[310643569,1704615041468,-500.0,0.00022996,2]
[310643570,1704615041479,-500.0,0.00022996,2]
[310643571,1704615041488,-700.49,0.00022996,2]
[310643572,1704615041498,-700.49,0.00022996,2]
[310643573,1704615041507,-506.39,0.00022996,2]
[310643574,1704615041516,-506.39,0.00022996,2]
[310643575,1704615041526,-500.0,0.00022996,2]
[310643576,1704615041535,-585.96,0.00022996,2]
[310643577,1704615041544,-500.0,0.00022996,2]
[310643578,1704615041554,-500.0,0.00022996,2]
[310643579,1704615041563,-3453.25,0.00022996,2]
[310643580,1704615041574,-2644.55670145,0.00022996,2]
[310643602,1704615046278,-537.72948588,0.00022996,2]
[310643603,1704615047855,-270.96381267,0.00022996,2]
[310643604,1704615047867,-193.36,0.00022996,2]
[310643605,1704615047879,-515.42,0.00022996,2]
[310643606,1704615047890,-515.42,0.00022996,2]
[310643607,1704615047900,-500.0,0.00022996,2]
[310643608,1704615047912,-500.0,0.00022996,2]
[310643609,1704615047922,-500.0,0.00022996,2]
[310643610,1704615047934,-500.0,0.00022996,2]
[310643611,1704615047947,-500.0,0.00022996,2]
[310643612,1704615047958,-500.0,0.00022996,2]
[310643613,1704615047969,-528.85,0.00022996,2]
[310643614,1704615047980,-528.85,0.00022996,2]
[310643615,1704615047990,-559.72,0.00022996,2]
[310643616,1704615048002,-559.72,0.00022996,2]
[310643617,1704615048014,-3417.41,0.00022996,2]
[310643618,1704615048028,-3417.41,0.00022996,2]
[310643619,1704615048038,-434.84,0.00022996,2]
[310643620,1704615048049,-150.0,0.00022996,2]
[310643621,1704615048059,-472.09928176,0.00022997,2]
[310643622,1704615048070,-233.80752851,0.00022997,2]
[310643623,1704615048080,-2143.7555297,0.00022997,2]
[310643624,1704615048091,-531.06,0.00022997,2]
[310643625,1704615048102,-767.56716434,0.00022997,2]
[310643626,1704615048115,-3037.57683783,0.00022997,2]
[310643627,1704615048127,-554.08730995,0.00022997,2]
[310643628,1704615048140,-273.02922644,0.00022997,2]
[310643629,1704615048151,-574.89,0.00022997,2]
[310643630,1704615048162,-621.18,0.00022997,2]
[310643631,1704615048173,-500.0,0.00022997,2]
[310643632,1704615048185,-700.49,0.00022997,2]
[310643633,1704615048195,-506.39,0.00022997,2]
[310643634,1704615048205,-500.0,0.00022997,2]
[310643635,1704615048215,-3453.25,0.00022997,2]
[310643636,1704615048226,-515.42,0.00022997,2]
[310643637,1704615048235,-500.0,0.00022997,2]
[310643638,1704615048246,-266.82097281,0.00022997,2]
[310643639,1704615048256,-500.0,0.00022997,2]
[310643640,1704615048266,-528.85,0.00022997,2]
[310643641,1704615048280,-559.72,0.00022997,2]
[310643642,1704615048290,-3417.41,0.00022997,2]
[310643643,1704615048301,-25560.00606302,0.00022998,2]
[310643644,1704615048311,-500.0,0.00022998,2]
[310643645,1704615048322,-500.0,0.00022998,2]
[310643646,1704615048333,-537.32937286,0.00022998,2]
[310643647,1704615048343,-500.0,0.00022998,2]
[310643648,1704615048354,-500.0,0.00022998,2]
[310643649,1704615048365,-574.89,0.00022998,2]
[310643650,1704615048375,-574.89,0.00022998,2]
[310643651,1704615048387,-574.89,0.00022998,2]
[310643652,1704615048399,-621.18,0.00022998,2]
[310643653,1704615048409,-621.18,0.00022998,2]
[310643654,1704615048421,-621.18,0.00022998,2]
[310643655,1704615048433,-500.0,0.00022998,2]
[310643656,1704615048442,-500.0,0.00022998,2]
[310643657,1704615048452,-500.0,0.00022998,2]
[310643658,1704615048465,-700.49,0.00022998,2]
[310643659,1704615048475,-700.49,0.00022998,2]
[310643660,1704615048485,-700.49,0.00022998,2]
[310643661,1704615048495,-506.39,0.00022998,2]
[310643662,1704615048505,-506.39,0.00022998,2]
[310643663,1704615048516,-506.39,0.00022998,2]
[310643664,1704615048527,-500.0,0.00022998,2]
[310643665,1704615048537,-327.2,0.00022998,2]
[310643666,1704615048547,-500.0,0.00022998,2]
[310643667,1704615048557,-500.0,0.00022998,2]
[310643668,1704615048567,-614.94,0.00022998,2]
[310643669,1704615048577,-3453.25,0.00022998,2]
[310643670,1704615048588,-3453.25,0.00022998,2]
[310643671,1704615048598,-3453.25,0.00022998,2]
[310643672,1704615048609,-500.0,0.00022998,2]
[310643673,1704615048618,-500.0,0.00022998,2]
[310643674,1704615048628,-500.0,0.00022998,2]
[310643675,1704615048638,-500.0,0.00022998,2]
[310643676,1704615048647,-515.42,0.00022998,2]
[310643677,1704615048657,-515.42,0.00022998,2]
[310643678,1704615048666,-515.42,0.00022998,2]
[310643679,1704615048676,-562.95,0.00022998,2]
[310643680,1704615048686,-500.0,0.00022998,2]
[310643681,1704615048695,-500.0,0.00022998,2]
[310643682,1704615048705,-500.0,0.00022998,2]
[310643683,1704615048717,-500.0,0.00022998,2]
[310643684,1704615048726,-500.0,0.00022998,2]
[310643685,1704615048737,-500.0,0.00022998,2]
[310643686,1704615048746,-500.0,0.00022998,2]
[310643687,1704615048757,-500.0,0.00022998,2]
[310643688,1704615048767,-500.0,0.00022998,2]
[310643689,1704615048777,-500.0,0.00022998,2]
[310643690,1704615048787,-528.85,0.00022998,2]
[310643691,1704615048797,-528.85,0.00022998,2]
[310643692,1704615048807,-528.85,0.00022998,2]
[310643693,1704615048816,-1208.15,0.00022998,2]
[310643694,1704615048826,-1208.15,0.00022998,2]
[310643695,1704615048835,-500.0,0.00022998,2]
[310643696,1704615048845,-1208.15,0.00022998,2]
[310643697,1704615048854,-500.0,0.00022998,2]
[310643698,1704615048864,-500.0,0.00022998,2]
[310643699,1704615048873,-1208.15,0.00022998,2]
[310643700,1704615048883,-500.0,0.00022998,2]
[310643701,1704615048892,-559.72,0.00022998,2]
[310643702,1704615048902,-559.72,0.00022998,2]
[310643703,1704615048911,-559.72,0.00022998,2]
[310643704,1704615048921,-1662.83,0.00022998,2]
[310643705,1704615048930,-1662.83,0.00022998,2]
[310643706,1704615048941,-1662.83,0.00022998,2]
[310643707,1704615048950,-1662.83,0.00022998,2]
[310643708,1704615048960,-3417.41,0.00022998,2]
[310643709,1704615048970,-3417.41,0.00022998,2]
[310643710,1704615048980,-3417.41,0.00022998,2]
[310643711,1704615048989,-582.43,0.00022998,2]
[310643712,1704615049000,-582.43,0.00022998,2]
[310643713,1704615049010,-582.43,0.00022998,2]
[310643714,1704615049019,-582.43,0.00022998,2]
[310643715,1704615049031,-1457.31023914,0.00022998,2]
[310643716,1704615049041,-500.0,0.00022998,2]
[310643717,1704615049051,-500.0,0.00022998,2]
[310643718,1704615049061,-500.0,0.00022998,2]
[310643719,1704615049071,-360.65,0.00022998,2]
[310643720,1704615049081,-162486.37173055,0.00022999,2]
[310643721,1704615091170,257.94,0.00023503,10]
[310643722,1704615091493,257.94,0.00024079,10]
[310643723,1704615091717,257.94,0.00024654,10]
[310643724,1704615103994,500.0,0.00022,2]
[310643725,1704615124022,2000.0,0.00022263,2]
[310643726,1704615197870,23900.0,0.00021888,2]
[310643727,1704615229174,500.0,0.00022225,2]
[310643728,1704615259090,463.17,0.00020307,2]
[310643729,1704615259300,211.94,0.00021888,2]
[310643730,1704615308954,1615.69,0.00022172,2]
[310643731,1704615317591,561.88,0.00022174,2]
[310643732,1704615340357,-151.0,0.0003009,120]
[310643733,1704615340393,-528.0,0.000301,120]
[310643734,1704615350897,170.53,0.00022159,2]
[310643735,1704615408904,200.0,0.00022159,2]
[310643736,1704615470050,150.0,0.00022135,2]
[310643737,1704615484433,750.0,0.00022157,2]
[310643738,1704615496422,175.9,0.00022,2]
[310643739,1704615504641,171.12,0.00022323,2]
[310643740,1704615504994,171.12,0.00022384,2]
[310643741,1704615505202,171.12,0.00022445,2]
[310643742,1704615505435,171.12,0.00022506,2]
[310643743,1704615510752,171.96,0.00022029,10]
[310643744,1704615510947,171.96,0.00023108,10]
[310643745,1704615511326,171.96,0.00024187,10]
[310643746,1704615596357,2000.0,0.00022023,2]
[310643747,1704615611962,23900.0,0.00022023,2]
[310643748,1704615652104,212.73,0.00022016,2]
[310643749,1704615659870,1000.0,0.00022016,2]
[310643750,1704615680143,365.1,0.00022159,2]
[310643751,1704615705477,211.94,0.00022023,2]
[310643752,1704615708903,440.01,0.00020105,2]
[310643753,1704615709092,440.01,0.00022369,2]
[310643754,1704615726039,500.0,0.00022,2]
[310643755,1704615779000,200.72935113,0.00021452,2]
[310643756,1704615786621,524.42,0.00022024,2]
[310643757,1704615909406,168.1,0.00022023,2]
[310643758,1704615935840,152.1,0.00022188,2]
[310643759,1704615936040,152.1,0.00022256,2]
[310643760,1704615936267,152.1,0.00022324,2]
[310643761,1704615936674,152.1,0.00022392,2]
[310643762,1704615936882,152.1,0.0002246,2]
[310643763,1704615939548,200.0,0.00022113,2]
[310643764,1704615994241,204.0,0.00021855,2]
[310643765,1704616028828,300.0,0.000222,8]
[310643766,1704616030922,700.0,0.000223,8]
[310643767,1704616033084,1000.0,0.000224,8]
[310643768,1704616035176,1400.0,0.000225,8]
[310643769,1704616037400,-152.1,0.00022528,2]
[310643770,1704616037423,-351.15,0.00022548,2]
[310643771,1704616037446,-347.9,0.00022548,2]
[310643772,1704616037475,1800.0,0.000226,8]
[310643773,1704616039364,300.0,0.000227,8]
[310643774,1704616041691,300.0,0.000228,8]
[310643775,1704616043785,300.0,0.000229,8]
[310643779,1704616062254,23900.0,0.00022062,2]
[310643780,1704616071214,408.78,0.00022023,2]
[310643781,1704616127059,164.76,0.00022049,2]
[310643782,1704616140746,200.0,0.00022049,2]
[310643783,1704616174096,396.0,0.00020105,2]
[310643784,1704616174512,396.0,0.00022369,2]
[310643785,1704616203886,1000.25,0.00022092,2]
[310643794,1704616232186,-152.1,0.00022548,2]
[310643795,1704616232196,-152.1,0.00022596,2]
[310643796,1704616232205,-152.1,0.00022664,2]
[310643797,1704616232215,-152.1,0.00022732,2]
[310643798,1704616232224,-152.1,0.000228,2]
[310643799,1704616232233,-152.1,0.00022868,2]
[310643800,1704616232243,-630.41624214,0.00022899,2]
[310643801,1704616232261,-1210.28703307,0.00022899,2]
[310643802,1704616232413,-327.41752479,0.00022899,2]
[310643803,1704616232422,-124.22134287,0.000229,2]
[310643852,1704616238251,-4304.2,0.000229,2]
[310643853,1704616238468,-793.67266726,0.000229,2]
[310643855,1704616240784,-1344.15876067,0.000229,2]
[310643856,1704616240797,-1189.05,0.000229,2]
[310643857,1704616241560,-5390.49580687,0.000229,2]
[310643889,1704616246366,-12107.53526629,0.000229,2]
[310643890,1704616246376,-152.1,0.00022936,2]
[310643891,1704616246385,-6485.87982551,0.00022938,2]
[310643892,1704616246423,-2296.25074553,0.00022938,2]
[310643893,1704616246434,-541.0,0.00022938,2]
[310643894,1704616246556,-10330.86942896,0.00022938,2]
[310643895,1704616246565,-834.0,0.00022938,2]
[310643896,1704616246574,-1210.28703307,0.00022997,2]
[310643897,1704616246583,-1695.18757658,0.00022997,2]
[310643898,1704616246592,-1072.57133338,0.00022997,2]
[310643899,1704616246601,-3286.93466783,0.00022998,2]
[310643900,1704616246610,-500.0,0.00022998,2]
[310643901,1704616246619,-500.0,0.00022998,2]
[310643902,1704616246629,-625.14,0.00022998,2]
[310643903,1704616246638,-525.37,0.00022998,2]
[310643904,1704616246647,-500.0,0.00022998,2]
[310643905,1704616246657,-500.0,0.00022998,2]
[310643906,1704616246666,-2621.47,0.00022998,2]
[310643907,1704616246675,-500.0,0.00022998,2]
[310643908,1704616246685,-500.0,0.00022998,2]
[310643909,1704616246694,-500.0,0.00022998,2]
[310643910,1704616246704,-500.0,0.00022998,2]
[310643911,1704616246713,-500.0,0.00022998,2]
[310643912,1704616246722,-500.0,0.00022998,2]
[310643913,1704616246731,-500.0,0.00022998,2]
[310643914,1704616246740,-2563.06,0.00022998,2]
[310643915,1704616246750,-1177.84,0.00022998,2]
[310643916,1704616246759,-500.0,0.00022998,2]
[310643917,1704616246768,-855.77,0.00022998,2]
[310643918,1704616246777,-150.0,0.00022998,2]
[310643919,1704616246786,-500.0,0.00022998,2]
[310643920,1704616246798,-500.0,0.00022998,2]
[310643921,1704616246807,-500.0,0.00022998,2]
[310643922,1704616246817,-439.87,0.00022998,2]
[310643923,1704616246826,-531.81655739,0.00022998,2]
[310643924,1704616246835,-759.18007763,0.00022999,2]